[Event "Titled Tuesday Blitz January 03 Late 2023"]
[White "AKINSEYE, Akinleye"]
[Black "Goltseva, Ekaterina"]
[WhiteFideId "8504458"]
[BlackFideId "24173770"]
[WhiteElo "1797"]
[BlackElo "2283"]
[Result "0-1"]
[Round "01"]
[TimeControl "180+2"]
[Date "2023.01.03"]
[WhiteClock "0:01:29"]
[BlackClock "0:01:47"]

1. e4 {[%clk 0:02:58]}  e5 {[%clk 0:02:53]} 2. Nf3 {[%clk 0:02:58]}  Nc6 {[%clk 0:02:53]} 3. Bc4 {[%clk 0:02:58]}  Nf6 {[%clk 0:02:53]} 4. d3 {[%clk 0:02:58]}  Be7 {[%clk 0:02:53]} 5. O-O {[%clk 0:02:57]}  O-O {[%clk 0:02:54]} 6. c3 {[%clk 0:02:57]}  d5 {[%clk 0:02:54]} 7. exd5 {[%clk 0:02:57]}  Nxd5 {[%clk 0:02:55]} 8. Bxd5 {[%clk 0:02:57]}  Qxd5 {[%clk 0:02:55]} 9. d4 {[%clk 0:02:55]}  exd4 {[%clk 0:02:43]} 10. cxd4 {[%clk 0:02:55]}  Bg4 {[%clk 0:02:41]} 11. Be3 {[%clk 0:02:51]}  Bxf3 {[%clk 0:02:35]} 12. Qxf3 {[%clk 0:02:50]}  Qxf3 {[%clk 0:02:35]} 13. gxf3 {[%clk 0:02:51]}  Rad8 {[%clk 0:02:35]} 14. Rd1 {[%clk 0:02:48]}  Bf6 {[%clk 0:02:35]} 15. Na3 {[%clk 0:02:44]}  Nxd4 {[%clk 0:02:33]} 16. Bxd4 {[%clk 0:02:44]}  Bxd4 {[%clk 0:02:34]} 17. Rab1 {[%clk 0:02:40]}  a6 {[%clk 0:02:30]} 18. Nc2 {[%clk 0:02:40]}  Bc5 {[%clk 0:02:28]} 19. Ne3 {[%clk 0:02:39]}  g6 {[%clk 0:02:26]} 20. Kg2 {[%clk 0:02:38]}  Kg7 {[%clk 0:02:25]} 21. a3 {[%clk 0:02:36]}  Bd4 {[%clk 0:02:25]} 22. b4 {[%clk 0:02:34]}  Rfe8 {[%clk 0:02:22]} 23. Nc2 {[%clk 0:02:27]}  Bc3 {[%clk 0:02:21]} 24. Ne3 {[%clk 0:02:25]}  Bd4 {[%clk 0:02:20]} 25. Nc2 {[%clk 0:02:25]}  Bb6 {[%clk 0:02:21]} 26. Kf1 {[%clk 0:02:09]}  c6 {[%clk 0:02:13]} 27. Ne1 {[%clk 0:02:01]}  h5 {[%clk 0:02:12]} 28. Ng2 {[%clk 0:02:00]}  g5 {[%clk 0:02:11]} 29. h4 {[%clk 0:01:55]}  f6 {[%clk 0:02:10]} 30. hxg5 {[%clk 0:01:54]}  fxg5 {[%clk 0:02:10]} 31. f4 {[%clk 0:01:53]}  g4 {[%clk 0:02:04]} 32. Nh4 {[%clk 0:01:52]}  Kf6 {[%clk 0:02:03]} 33. Rxd8 {[%clk 0:01:45]}  Rxd8 {[%clk 0:02:03]} 34. Re1 {[%clk 0:01:44]}  Rd2 {[%clk 0:02:00]} 35. Re2 {[%clk 0:01:43]}  Rd3 {[%clk 0:01:59]} 36. Ra2 {[%clk 0:01:40]}  Bc7 {[%clk 0:01:56]} 37. Ng2 {[%clk 0:01:39]}  Rd1+ {[%clk 0:01:50]} 38. Ke2 {[%clk 0:01:37]}  Rg1 {[%clk 0:01:50]} 39. Ne3 {[%clk 0:01:37]}  Bxf4 {[%clk 0:01:50]} 40. Rd2 {[%clk 0:01:32]}  h4 {[%clk 0:01:47]} 41. Rd6+ {[%clk 0:01:29]}  Bxd6 {[%clk 0:01:47]} 0-1


[Site "https://www.chess.com"]

[Event "Titled Tuesday Blitz January 03 Late 2023"]
[White "Erzhanov, Arman"]
[Black "Dias, Joao Batista"]
[WhiteFideId "4138821"]
[BlackFideId "2108240"]
[WhiteElo "2228"]
[BlackElo "1796"]
[Result "1-0"]
[Round "01"]
[TimeControl "180+2"]
[Date "2023.01.03"]
[WhiteClock "0:02:27"]
[BlackClock "0:02:16"]

1. e4 {[%clk 0:02:56]}  e5 {[%clk 0:02:59]} 2. Nf3 {[%clk 0:02:56]}  Nc6 {[%clk 0:02:59]} 3. Bc4 {[%clk 0:02:57]}  Be7 {[%clk 0:02:58]} 4. d4 {[%clk 0:02:57]}  exd4 {[%clk 0:02:58]} 5. c3 {[%clk 0:02:57]}  dxc3 {[%clk 0:02:58]} 6. Qd5 {[%clk 0:02:57]}  Nh6 {[%clk 0:02:49]} 7. Bxh6 {[%clk 0:02:58]}  O-O {[%clk 0:02:49]} 8. Bxg7 {[%clk 0:02:59]}  Kxg7 {[%clk 0:02:49]} 9. Nxc3 {[%clk 0:02:59]}  d6 {[%clk 0:02:47]} 10. Qh5 {[%clk 0:03:00]}  Be6 {[%clk 0:02:42]} 11. Bd3 {[%clk 0:02:57]}  Ne5 {[%clk 0:02:41]} 12. Nxe5 {[%clk 0:02:50]}  dxe5 {[%clk 0:02:39]} 13. Qxe5+ {[%clk 0:02:50]}  Bf6 {[%clk 0:02:38]} 14. Qg3+ {[%clk 0:02:50]}  Kh8 {[%clk 0:02:37]} 15. O-O {[%clk 0:02:50]}  Rg8 {[%clk 0:02:37]} 16. Qf3 {[%clk 0:02:48]}  Qd4 {[%clk 0:02:33]} 17. Nb5 {[%clk 0:02:39]}  Qe5 {[%clk 0:02:30]} 18. Nxc7 {[%clk 0:02:27]}  Bg4 {[%clk 0:02:25]} 19. Qg3 {[%clk 0:02:28]}  Qd6 {[%clk 0:02:15]} 20. Qxd6 {[%clk 0:02:27]}  Be5 {[%clk 0:02:16]} 21. Qxe5+ {[%clk 0:02:27]} 1-0


[Site "https://www.chess.com"]

[Event "Titled Tuesday Blitz January 03 Late 2023"]
[White "Cruz Gomez, Miguel Angel"]
[Black "Cruz Mendez, Jean Marco"]
[WhiteFideId "5137160"]
[BlackFideId "3526402"]
[WhiteElo "1950"]
[BlackElo "2270"]
[Result "1/2-1/2"]
[Round "01"]
[TimeControl "180+2"]
[Date "2023.01.03"]
[WhiteClock "0:00:42"]
[BlackClock "0:00:20"]

1. Nf3 {[%clk 0:03:00]}  d5 {[%clk 0:02:58]} 2. c4 {[%clk 0:03:00]}  c6 {[%clk 0:02:57]} 3. cxd5 {[%clk 0:02:59]}  cxd5 {[%clk 0:02:58]} 4. d4 {[%clk 0:02:59]}  Nc6 {[%clk 0:02:58]} 5. Nc3 {[%clk 0:03:00]}  Nf6 {[%clk 0:02:58]} 6. Bf4 {[%clk 0:03:00]}  Bf5 {[%clk 0:02:56]} 7. e3 {[%clk 0:03:00]}  e6 {[%clk 0:02:56]} 8. Bd3 {[%clk 0:03:00]}  Bxd3 {[%clk 0:02:55]} 9. Qxd3 {[%clk 0:03:01]}  a6 {[%clk 0:02:55]} 10. a3 {[%clk 0:02:59]}  Bd6 {[%clk 0:02:55]} 11. Bxd6 {[%clk 0:03:00]}  Qxd6 {[%clk 0:02:56]} 12. O-O {[%clk 0:03:00]}  O-O {[%clk 0:02:56]} 13. Rfc1 {[%clk 0:03:01]}  Rac8 {[%clk 0:02:54]} 14. Nd2 {[%clk 0:02:59]}  Nd7 {[%clk 0:02:49]} 15. Nb3 {[%clk 0:02:54]}  b5 {[%clk 0:02:44]} 16. a4 {[%clk 0:02:51]}  b4 {[%clk 0:02:41]} 17. Ne2 {[%clk 0:02:48]}  a5 {[%clk 0:02:39]} 18. Qb5 {[%clk 0:02:37]}  Nf6 {[%clk 0:02:09]} 19. Nxa5 {[%clk 0:01:53]}  Nxa5 {[%clk 0:02:10]} 20. Qxa5 {[%clk 0:01:53]}  Ne4 {[%clk 0:02:10]} 21. Qb5 {[%clk 0:01:45]}  Nd2 {[%clk 0:02:06]} 22. Rxc8 {[%clk 0:01:37]}  Rxc8 {[%clk 0:02:07]} 23. a5 {[%clk 0:01:37]}  Rb8 {[%clk 0:02:02]} 24. Qd3 {[%clk 0:01:32]}  Nc4 {[%clk 0:01:59]} 25. b3 {[%clk 0:01:31]}  Na3 {[%clk 0:01:59]} 26. Nf4 {[%clk 0:01:15]}  Ra8 {[%clk 0:01:51]} 27. Rc1 {[%clk 0:01:15]}  g6 {[%clk 0:01:46]} 28. Rc5 {[%clk 0:01:06]}  Qd8 {[%clk 0:01:36]} 29. g3 {[%clk 0:00:55]}  Rxa5 {[%clk 0:01:34]} 30. Qd2 {[%clk 0:00:55]}  Qb6 {[%clk 0:00:56]} 31. Nd3 {[%clk 0:00:52]}  Rxc5 {[%clk 0:00:36]} 32. Nxc5 {[%clk 0:00:53]}  Nb1 {[%clk 0:00:33]} 33. Qc2 {[%clk 0:00:52]}  Nc3 {[%clk 0:00:33]} 34. Qd3 {[%clk 0:00:49]}  Qa5 {[%clk 0:00:31]} 35. Qa6 {[%clk 0:00:49]}  Qxa6 {[%clk 0:00:25]} 36. Nxa6 {[%clk 0:00:50]}  Ne2+ {[%clk 0:00:26]} 37. Kf1 {[%clk 0:00:49]}  Nc1 {[%clk 0:00:27]} 38. Nxb4 {[%clk 0:00:48]}  Nxb3 {[%clk 0:00:27]} 39. Ke2 {[%clk 0:00:49]}  Na5 {[%clk 0:00:27]} 40. Kd3 {[%clk 0:00:48]}  Nc4 {[%clk 0:00:27]} 41. Na6 {[%clk 0:00:48]}  Kg7 {[%clk 0:00:28]} 42. Nc5 {[%clk 0:00:48]}  Kf6 {[%clk 0:00:27]} 43. e4 {[%clk 0:00:48]}  Kg5 {[%clk 0:00:26]} 44. e5 {[%clk 0:00:46]}  h5 {[%clk 0:00:19]} 45. h3 {[%clk 0:00:46]}  h4 {[%clk 0:00:19]} 46. Nb7 {[%clk 0:00:39]}  hxg3 {[%clk 0:00:15]} 47. fxg3 {[%clk 0:00:40]}  Nb6 {[%clk 0:00:12]} 48. Nd6 {[%clk 0:00:39]}  f6 {[%clk 0:00:12]} 49. Nf7+ {[%clk 0:00:38]}  Kf5 {[%clk 0:00:13]} 50. Nd6+ {[%clk 0:00:38]}  Kg5 {[%clk 0:00:13]} 51. Nf7+ {[%clk 0:00:37]}  Kf5 {[%clk 0:00:13]} 52. Ke3 {[%clk 0:00:37]}  fxe5 {[%clk 0:00:13]} 53. dxe5 {[%clk 0:00:38]}  Nc4+ {[%clk 0:00:13]} 54. Kd4 {[%clk 0:00:36]}  Nb6 {[%clk 0:00:10]} 55. Ke3 {[%clk 0:00:35]}  g5 {[%clk 0:00:10]} 56. g4+ {[%clk 0:00:35]}  Kg6 {[%clk 0:00:11]} 57. Nd8 {[%clk 0:00:35]}  Nc4+ {[%clk 0:00:08]} 58. Kd4 {[%clk 0:00:35]}  Nd2 {[%clk 0:00:08]} 59. Nxe6 {[%clk 0:00:35]}  Kh6 {[%clk 0:00:09]} 60. Nc7 {[%clk 0:00:32]}  Nf3+ {[%clk 0:00:09]} 61. Kxd5 {[%clk 0:00:33]}  Ng1 {[%clk 0:00:10]} 62. e6 {[%clk 0:00:33]}  Nxh3 {[%clk 0:00:08]} 63. e7 {[%clk 0:00:34]}  Nf4+ {[%clk 0:00:09]} 64. Ke5 {[%clk 0:00:34]}  Ng6+ {[%clk 0:00:09]} 65. Kf6 {[%clk 0:00:35]}  Nxe7 {[%clk 0:00:09]} 66. Kxe7 {[%clk 0:00:36]}  Kg6 {[%clk 0:00:09]} 67. Nd5 {[%clk 0:00:37]}  Kh6 {[%clk 0:00:10]} 68. Ne3 {[%clk 0:00:37]}  Kg6 {[%clk 0:00:10]} 69. Ke6 {[%clk 0:00:38]}  Kh6 {[%clk 0:00:11]} 70. Kf5 {[%clk 0:00:38]}  Kg7 {[%clk 0:00:12]} 71. Kxg5 {[%clk 0:00:38]}  Kh7 {[%clk 0:00:13]} 72. Kf5 {[%clk 0:00:39]}  Kg7 {[%clk 0:00:13]} 73. g5 {[%clk 0:00:40]}  Kh7 {[%clk 0:00:14]} 74. Ng4 {[%clk 0:00:41]}  Kg7 {[%clk 0:00:14]} 75. Ne5 {[%clk 0:00:42]}  Kh7 {[%clk 0:00:15]} 76. Ng4 {[%clk 0:00:42]}  Kg7 {[%clk 0:00:16]} 77. Nf6 {[%clk 0:00:42]}  Kf7 {[%clk 0:00:16]} 78. Nh5 {[%clk 0:00:43]}  Kf8 {[%clk 0:00:17]} 79. g6 {[%clk 0:00:44]}  Kg8 {[%clk 0:00:17]} 80. Kf6 {[%clk 0:00:44]}  Kf8 {[%clk 0:00:18]} 81. g7+ {[%clk 0:00:44]}  Kg8 {[%clk 0:00:18]} 82. Nf4 {[%clk 0:00:43]}  Kh7 {[%clk 0:00:19]} 83. Kf7 {[%clk 0:00:42]}  Kh6 {[%clk 0:00:20]} 84. g8=Q {[%clk 0:00:42]} 1/2-1/2


[Site "https://www.chess.com"]

[Event "Titled Tuesday Blitz January 03 Late 2023"]
[White "Zhurbinsky, David"]
[Black "Vargas, Mauricio"]
[WhiteFideId "2072904"]
[BlackFideId "4404572"]
[WhiteElo "2045"]
[BlackElo "2035"]
[Result "1-0"]
[Round "01"]
[TimeControl "180+2"]
[Date "2023.01.03"]
[WhiteClock "0:01:13"]
[BlackClock "0:00:13"]

1. e4 {[%clk 0:02:56]}  c6 {[%clk 0:02:58]} 2. d4 {[%clk 0:02:57]}  d5 {[%clk 0:02:58]} 3. Nc3 {[%clk 0:02:58]}  dxe4 {[%clk 0:02:58]} 4. Nxe4 {[%clk 0:02:59]}  Nf6 {[%clk 0:02:58]} 5. Nxf6+ {[%clk 0:02:59]}  exf6 {[%clk 0:02:58]} 6. c3 {[%clk 0:03:00]}  Bf5 {[%clk 0:02:59]} 7. Nf3 {[%clk 0:02:58]}  Bd6 {[%clk 0:02:59]} 8. Bd3 {[%clk 0:02:59]}  Bg4 {[%clk 0:02:58]} 9. h3 {[%clk 0:02:58]}  Bh5 {[%clk 0:02:52]} 10. O-O {[%clk 0:02:58]}  O-O {[%clk 0:02:48]} 11. Re1 {[%clk 0:02:55]}  Nd7 {[%clk 0:02:46]} 12. Be3 {[%clk 0:02:52]}  Re8 {[%clk 0:02:45]} 13. Qc2 {[%clk 0:02:36]}  Nf8 {[%clk 0:02:43]} 14. Nh4 {[%clk 0:02:31]}  Bc7 {[%clk 0:02:38]} 15. Nf5 {[%clk 0:02:30]}  Bg6 {[%clk 0:02:16]} 16. c4 {[%clk 0:02:28]}  Bxf5 {[%clk 0:02:09]} 17. Bxf5 {[%clk 0:02:29]}  Qd6 {[%clk 0:02:09]} 18. g3 {[%clk 0:02:29]}  Re7 {[%clk 0:01:53]} 19. Bf4 {[%clk 0:02:16]}  Qd8 {[%clk 0:01:51]} 20. Qd2 {[%clk 0:02:09]}  Ne6 {[%clk 0:01:46]} 21. Bxc7 {[%clk 0:02:02]}  Qxc7 {[%clk 0:01:38]} 22. d5 {[%clk 0:01:59]}  Qd8 {[%clk 0:01:39]} 23. Rad1 {[%clk 0:01:55]}  cxd5 {[%clk 0:01:38]} 24. cxd5 {[%clk 0:01:56]}  Nf8 {[%clk 0:01:31]} 25. d6 {[%clk 0:01:51]}  Rxe1+ {[%clk 0:01:23]} 26. Rxe1 {[%clk 0:01:52]}  Ne6 {[%clk 0:01:17]} 27. Bxe6 {[%clk 0:01:47]}  fxe6 {[%clk 0:01:16]} 28. Rxe6 {[%clk 0:01:48]}  Rc8 {[%clk 0:01:11]} 29. d7 {[%clk 0:01:46]}  Rb8 {[%clk 0:00:39]} 30. Qd5 {[%clk 0:01:28]}  Kf8 {[%clk 0:00:36]} 31. Re8+ {[%clk 0:01:24]}  Qxe8 {[%clk 0:00:35]} 32. Qd6+ {[%clk 0:01:12]}  Qe7 {[%clk 0:00:35]} 33. Qxb8+ {[%clk 0:01:12]}  Kf7 {[%clk 0:00:33]} 34. d8=Q {[%clk 0:01:12]}  Qe1+ {[%clk 0:00:27]} 35. Kg2 {[%clk 0:01:13]}  Qe4+ {[%clk 0:00:27]} 36. Kh2 {[%clk 0:01:14]}  Kg6 {[%clk 0:00:15]} 37. Qe8+ {[%clk 0:01:13]}  Kh6 {[%clk 0:00:13]} 38. Qxe4 {[%clk 0:01:13]} 1-0


[Site "https://www.chess.com"]

[Event "Titled Tuesday Blitz January 03 Late 2023"]
[White "Slade, Theodore"]
[Black "Oliveira, Tiago Batista"]
[WhiteFideId "426547"]
[BlackFideId "2108291"]
[WhiteElo "1995"]
[BlackElo "1991"]
[Result "1-0"]
[Round "01"]
[TimeControl "180+2"]
[Date "2023.01.03"]
[WhiteClock "0:01:04"]
[BlackClock "0:00:10"]

1. d4 {[%clk 0:03:00]}  Nf6 {[%clk 0:02:58]} 2. c4 {[%clk 0:03:00]}  g6 {[%clk 0:02:57]} 3. Nc3 {[%clk 0:03:00]}  d5 {[%clk 0:02:54]} 4. cxd5 {[%clk 0:03:01]}  Nxd5 {[%clk 0:02:53]} 5. e4 {[%clk 0:03:02]}  Nxc3 {[%clk 0:02:53]} 6. bxc3 {[%clk 0:03:03]}  Bg7 {[%clk 0:02:51]} 7. Bc4 {[%clk 0:03:03]}  c5 {[%clk 0:02:51]} 8. Ne2 {[%clk 0:03:04]}  O-O {[%clk 0:02:50]} 9. O-O {[%clk 0:03:04]}  Nc6 {[%clk 0:02:48]} 10. Be3 {[%clk 0:03:05]}  Bg4 {[%clk 0:02:45]} 11. f3 {[%clk 0:03:06]}  cxd4 {[%clk 0:02:44]} 12. cxd4 {[%clk 0:03:05]}  Na5 {[%clk 0:02:44]} 13. Bxf7+ {[%clk 0:03:03]}  Rxf7 {[%clk 0:02:44]} 14. fxg4 {[%clk 0:03:03]}  Rxf1+ {[%clk 0:02:43]} 15. Kxf1 {[%clk 0:03:04]}  e5 {[%clk 0:02:43]} 16. d5 {[%clk 0:03:01]}  Nc4 {[%clk 0:02:42]} 17. Bf2 {[%clk 0:02:58]}  Qg5 {[%clk 0:02:26]} 18. h3 {[%clk 0:02:42]}  Rf8 {[%clk 0:02:20]} 19. Qd3 {[%clk 0:02:29]}  Qf6 {[%clk 0:01:35]} 20. Qg3 {[%clk 0:02:06]}  Nd2+ {[%clk 0:01:25]} 21. Kg1 {[%clk 0:02:01]}  Nxe4 {[%clk 0:01:24]} 22. Qf3 {[%clk 0:01:47]}  Nxf2 {[%clk 0:01:18]} 23. Qxf6 {[%clk 0:01:35]}  Rxf6 {[%clk 0:01:15]} 24. Rc1 {[%clk 0:01:33]}  e4 {[%clk 0:00:51]} 25. Rc7 {[%clk 0:01:29]}  Bf8 {[%clk 0:00:26]} 26. g5 {[%clk 0:01:24]}  Rf5 {[%clk 0:00:20]} 27. Nd4 {[%clk 0:01:22]}  Rxd5 {[%clk 0:00:14]} 28. Ne6 {[%clk 0:01:19]}  e3 {[%clk 0:00:09]} 29. Rc8 {[%clk 0:01:19]}  Rf5 {[%clk 0:00:09]} 30. g4 {[%clk 0:01:16]}  Rf7 {[%clk 0:00:09]} 31. Kf1 {[%clk 0:01:07]}  Nxg4+ {[%clk 0:00:08]} 32. Ke2 {[%clk 0:01:08]}  Ne5 {[%clk 0:00:07]} 33. Kxe3 {[%clk 0:01:08]}  Nc6 {[%clk 0:00:07]} 34. Ke4 {[%clk 0:01:05]}  Ne7 {[%clk 0:00:07]} 35. Rb8 {[%clk 0:01:04]}  Nf5 {[%clk 0:00:06]} 36. Ra8 {[%clk 0:01:03]}  Nd6+ {[%clk 0:00:05]} 37. Kd5 {[%clk 0:01:03]}  a6 {[%clk 0:00:05]} 38. Nxf8 {[%clk 0:00:58]}  Rxf8 {[%clk 0:00:05]} 39. Rxf8+ {[%clk 0:00:59]}  Kxf8 {[%clk 0:00:05]} 40. Kxd6 {[%clk 0:00:59]}  b5 {[%clk 0:00:05]} 41. Kc5 {[%clk 0:01:00]}  Kg7 {[%clk 0:00:05]} 42. Kb6 {[%clk 0:01:00]}  h6 {[%clk 0:00:05]} 43. h4 {[%clk 0:01:00]}  hxg5 {[%clk 0:00:05]} 44. hxg5 {[%clk 0:01:01]}  b4 {[%clk 0:00:05]} 45. Kxa6 {[%clk 0:01:00]}  Kf7 {[%clk 0:00:06]} 46. Kb5 {[%clk 0:01:01]}  Ke6 {[%clk 0:00:07]} 47. Kxb4 {[%clk 0:01:01]}  Kf5 {[%clk 0:00:07]} 48. a4 {[%clk 0:01:01]}  Kxg5 {[%clk 0:00:08]} 49. a5 {[%clk 0:01:01]}  Kf4 {[%clk 0:00:08]} 50. a6 {[%clk 0:01:02]}  g5 {[%clk 0:00:09]} 51. a7 {[%clk 0:01:02]}  g4 {[%clk 0:00:09]} 52. a8=Q {[%clk 0:01:03]}  g3 {[%clk 0:00:10]} 53. Qg2 {[%clk 0:01:04]} 1-0


[Site "https://www.chess.com"]

[Event "Titled Tuesday Blitz January 03 Late 2023"]
[White "Nakamura, Hikaru"]
[Black "UnknownMagician"]
[WhiteFideId "2016192"]
[WhiteElo "2775"]
[BlackElo "2670"]
[Result "1-0"]
[Round "02"]
[TimeControl "180+2"]
[Date "2023.01.03"]
[WhiteClock "0:01:25"]
[BlackClock "0:00:26"]

1. Nf3 {[%clk 0:03:00]}  Nf6 {[%clk 0:02:57]} 2. g3 {[%clk 0:02:58]}  g6 {[%clk 0:02:57]} 3. Bg2 {[%clk 0:02:55]}  Bg7 {[%clk 0:02:57]} 4. O-O {[%clk 0:02:55]}  O-O {[%clk 0:02:58]} 5. d3 {[%clk 0:02:55]}  d5 {[%clk 0:02:58]} 6. Nbd2 {[%clk 0:02:55]}  Nc6 {[%clk 0:02:58]} 7. e4 {[%clk 0:02:55]}  e5 {[%clk 0:02:58]} 8. Re1 {[%clk 0:02:53]}  a5 {[%clk 0:02:58]} 9. b3 {[%clk 0:02:51]}  a4 {[%clk 0:02:55]} 10. Bb2 {[%clk 0:02:51]}  d4 {[%clk 0:02:51]} 11. a3 {[%clk 0:02:39]}  axb3 {[%clk 0:02:49]} 12. cxb3 {[%clk 0:02:39]}  h6 {[%clk 0:02:39]} 13. Rc1 {[%clk 0:02:37]}  Qe7 {[%clk 0:02:26]} 14. b4 {[%clk 0:02:36]}  Na7 {[%clk 0:02:12]} 15. a4 {[%clk 0:02:32]}  Qxb4 {[%clk 0:02:04]} 16. Nc4 {[%clk 0:02:32]}  Nc6 {[%clk 0:02:02]} 17. Ba3 {[%clk 0:02:29]}  Qxa4 {[%clk 0:02:00]} 18. Qxa4 {[%clk 0:02:28]}  Rxa4 {[%clk 0:02:01]} 19. Bxf8 {[%clk 0:02:29]}  Kxf8 {[%clk 0:01:51]} 20. Ncxe5 {[%clk 0:02:27]}  Nxe5 {[%clk 0:01:47]} 21. Nxe5 {[%clk 0:02:28]}  c6 {[%clk 0:01:34]} 22. Ra1 {[%clk 0:02:27]}  Rxa1 {[%clk 0:01:31]} 23. Rxa1 {[%clk 0:02:28]}  Be6 {[%clk 0:01:14]} 24. f4 {[%clk 0:02:18]}  Ng4 {[%clk 0:00:57]} 25. Ra8+ {[%clk 0:02:11]}  Ke7 {[%clk 0:00:57]} 26. Nxg4 {[%clk 0:02:08]}  Bxg4 {[%clk 0:00:57]} 27. Rb8 {[%clk 0:02:08]}  b5 {[%clk 0:00:45]} 28. Rb7+ {[%clk 0:02:04]}  Ke8 {[%clk 0:00:44]} 29. e5 {[%clk 0:02:03]}  Bd7 {[%clk 0:00:39]} 30. Rb6 {[%clk 0:01:49]}  Kd8 {[%clk 0:00:37]} 31. Rb8+ {[%clk 0:01:40]}  Ke7 {[%clk 0:00:37]} 32. Be4 {[%clk 0:01:35]}  g5 {[%clk 0:00:26]} 33. Kf2 {[%clk 0:01:31]}  gxf4 {[%clk 0:00:26]} 34. gxf4 {[%clk 0:01:30]}  f6 {[%clk 0:00:26]} 35. Rb7 {[%clk 0:01:25]} 1-0


[Site "https://www.chess.com"]

[Event "Titled Tuesday Blitz January 03 Late 2023"]
[White "Domingo Nunez, Alejandro"]
[Black "Carlsen, Magnus"]
[WhiteFideId "22245561"]
[BlackFideId "1503014"]
[WhiteElo "2338"]
[BlackElo "2853"]
[Result "0-1"]
[Round "02"]
[TimeControl "180+2"]
[Date "2023.01.03"]
[WhiteClock "0:00:05"]
[BlackClock "0:00:10"]

1. Nf3 {[%clk 0:03:00]}  d5 {[%clk 0:02:55]} 2. g3 {[%clk 0:03:01]}  Nc6 {[%clk 0:02:49]} 3. d4 {[%clk 0:03:00]}  Bf5 {[%clk 0:02:49]} 4. Bg2 {[%clk 0:03:00]}  Nb4 {[%clk 0:02:48]} 5. Na3 {[%clk 0:03:00]}  e6 {[%clk 0:02:44]} 6. O-O {[%clk 0:02:59]}  Nf6 {[%clk 0:02:40]} 7. c3 {[%clk 0:02:59]}  Nc6 {[%clk 0:02:39]} 8. Nc2 {[%clk 0:02:59]}  h6 {[%clk 0:02:38]} 9. Ne3 {[%clk 0:02:57]}  Be4 {[%clk 0:02:34]} 10. c4 {[%clk 0:02:48]}  Bd6 {[%clk 0:02:30]} 11. b3 {[%clk 0:02:33]}  O-O {[%clk 0:02:28]} 12. Bb2 {[%clk 0:02:33]}  a5 {[%clk 0:02:26]} 13. a3 {[%clk 0:02:22]}  Re8 {[%clk 0:02:21]} 14. Rc1 {[%clk 0:02:22]}  Nb8 {[%clk 0:02:01]} 15. Qd2 {[%clk 0:01:41]}  c6 {[%clk 0:01:59]} 16. c5 {[%clk 0:01:26]}  Bc7 {[%clk 0:01:53]} 17. Ne5 {[%clk 0:01:25]}  Nbd7 {[%clk 0:01:46]} 18. f3 {[%clk 0:01:24]}  Bh7 {[%clk 0:01:43]} 19. Rfd1 {[%clk 0:01:22]}  Nxe5 {[%clk 0:01:22]} 20. dxe5 {[%clk 0:01:22]}  Nd7 {[%clk 0:01:23]} 21. f4 {[%clk 0:01:16]}  b6 {[%clk 0:01:22]} 22. cxb6 {[%clk 0:01:05]}  Bxb6 {[%clk 0:01:23]} 23. Rxc6 {[%clk 0:01:06]}  Rc8 {[%clk 0:00:49]} 24. Rdc1 {[%clk 0:00:54]}  Rxc6 {[%clk 0:00:43]} 25. Rxc6 {[%clk 0:00:55]}  Qb8 {[%clk 0:00:44]} 26. Kh1 {[%clk 0:00:45]}  Nc5 {[%clk 0:00:43]} 27. b4 {[%clk 0:00:26]}  Ne4 {[%clk 0:00:39]} 28. Qc1 {[%clk 0:00:25]}  axb4 {[%clk 0:00:37]} 29. axb4 {[%clk 0:00:25]}  Bxe3 {[%clk 0:00:37]} 30. Qxe3 {[%clk 0:00:26]}  Qxb4 {[%clk 0:00:37]} 31. Bd4 {[%clk 0:00:26]}  Qe1+ {[%clk 0:00:37]} 32. Qg1 {[%clk 0:00:26]}  Qxe2 {[%clk 0:00:38]} 33. Rc1 {[%clk 0:00:20]}  Bf5 {[%clk 0:00:31]} 34. Re1 {[%clk 0:00:20]}  Qh5 {[%clk 0:00:31]} 35. Re3 {[%clk 0:00:14]}  Rc8 {[%clk 0:00:28]} 36. Bf3 {[%clk 0:00:11]}  Bg4 {[%clk 0:00:28]} 37. Bg2 {[%clk 0:00:09]}  Rc2 {[%clk 0:00:24]} 38. Rb3 {[%clk 0:00:08]}  Kh7 {[%clk 0:00:18]} 39. Qe1 {[%clk 0:00:07]}  Re2 {[%clk 0:00:14]} 40. Qb1 {[%clk 0:00:06]}  Bf5 {[%clk 0:00:10]} 41. Qg1 {[%clk 0:00:06]}  Rd2 {[%clk 0:00:10]} 42. Be3 {[%clk 0:00:05]}  Rd1 {[%clk 0:00:10]} 43. Bf1 {[%clk 0:00:05]}  Qf3+ {[%clk 0:00:10]} 44. Qg2 {[%clk 0:00:06]}  Rxf1+ {[%clk 0:00:09]} 45. Bg1 {[%clk 0:00:05]}  Nf2# {[%clk 0:00:10]} 0-1


[Site "https://www.chess.com"]

[Event "Titled Tuesday Blitz January 03 Late 2023"]
[White "Vachier-Lagrave, Maxime"]
[Black "Haydon, David L"]
[WhiteFideId "623539"]
[BlackFideId "415405"]
[WhiteElo "2742"]
[BlackElo "2253"]
[Result "1-0"]
[Round "02"]
[TimeControl "180+2"]
[Date "2023.01.03"]
[WhiteClock "0:00:33"]
[BlackClock "0:00:07"]

1. e4 {[%clk 0:03:00]}  c6 {[%clk 0:03:00]} 2. d4 {[%clk 0:02:56]}  d5 {[%clk 0:03:01]} 3. e5 {[%clk 0:02:54]}  Bf5 {[%clk 0:03:01]} 4. Nf3 {[%clk 0:02:54]}  e6 {[%clk 0:03:01]} 5. Be2 {[%clk 0:02:54]}  Nd7 {[%clk 0:03:01]} 6. O-O {[%clk 0:02:55]}  Ne7 {[%clk 0:03:02]} 7. c3 {[%clk 0:02:53]}  c5 {[%clk 0:03:01]} 8. Be3 {[%clk 0:02:52]}  Nc6 {[%clk 0:03:01]} 9. Na3 {[%clk 0:02:45]}  cxd4 {[%clk 0:03:01]} 10. cxd4 {[%clk 0:02:46]}  a6 {[%clk 0:03:00]} 11. Nc2 {[%clk 0:02:43]}  Rc8 {[%clk 0:02:56]} 12. Bd3 {[%clk 0:02:42]}  Bg6 {[%clk 0:02:54]} 13. Bxg6 {[%clk 0:02:33]}  hxg6 {[%clk 0:02:55]} 14. Nce1 {[%clk 0:02:32]}  Na5 {[%clk 0:02:52]} 15. Nd3 {[%clk 0:02:28]}  Nc4 {[%clk 0:02:50]} 16. Bf4 {[%clk 0:02:28]}  Be7 {[%clk 0:02:49]} 17. h3 {[%clk 0:02:28]}  g5 {[%clk 0:02:41]} 18. Bc1 {[%clk 0:02:28]}  Nf8 {[%clk 0:02:40]} 19. a4 {[%clk 0:02:08]}  Ng6 {[%clk 0:02:36]} 20. b3 {[%clk 0:02:08]}  Na5 {[%clk 0:02:33]} 21. Bd2 {[%clk 0:01:59]}  Nc6 {[%clk 0:02:31]} 22. Rc1 {[%clk 0:01:56]}  Nh4 {[%clk 0:02:27]} 23. Be3 {[%clk 0:01:54]}  Nf5 {[%clk 0:02:19]} 24. Qd2 {[%clk 0:01:51]}  f6 {[%clk 0:02:15]} 25. Rfe1 {[%clk 0:01:45]}  Kf7 {[%clk 0:02:13]} 26. b4 {[%clk 0:01:43]}  Qb6 {[%clk 0:01:46]} 27. exf6 {[%clk 0:01:42]}  gxf6 {[%clk 0:01:45]} 28. Qe2 {[%clk 0:01:38]}  Nxb4 {[%clk 0:01:28]} 29. Nc5 {[%clk 0:01:38]}  a5 {[%clk 0:01:12]} 30. Bxg5 {[%clk 0:01:33]}  Bxc5 {[%clk 0:01:03]} 31. dxc5 {[%clk 0:01:32]}  Qc6 {[%clk 0:01:02]} 32. g4 {[%clk 0:01:14]}  Ng7 {[%clk 0:00:32]} 33. Bxf6 {[%clk 0:01:12]}  Kxf6 {[%clk 0:00:31]} 34. Qb2+ {[%clk 0:01:12]}  Kf7 {[%clk 0:00:20]} 35. Ne5+ {[%clk 0:01:12]}  Kg8 {[%clk 0:00:21]} 36. Nxc6 {[%clk 0:01:12]}  bxc6 {[%clk 0:00:21]} 37. Rc3 {[%clk 0:01:08]}  Rf8 {[%clk 0:00:21]} 38. Kg2 {[%clk 0:01:04]}  Rh6 {[%clk 0:00:20]} 39. Rg3 {[%clk 0:00:59]}  Rhf6 {[%clk 0:00:21]} 40. Re2 {[%clk 0:00:57]}  Ne8 {[%clk 0:00:18]} 41. h4 {[%clk 0:00:52]}  Ng7 {[%clk 0:00:18]} 42. h5 {[%clk 0:00:48]}  R8f7 {[%clk 0:00:16]} 43. Qe5 {[%clk 0:00:39]}  Rf4 {[%clk 0:00:12]} 44. h6 {[%clk 0:00:37]}  Ne8 {[%clk 0:00:11]} 45. g5 {[%clk 0:00:37]}  Nd3 {[%clk 0:00:07]} 46. Qb8 {[%clk 0:00:33]}  Rxf2+ {[%clk 0:00:06]} 47. Rxf2 {[%clk 0:00:33]}  Rf6 {[%clk 0:00:07]} 48. gxf6+ {[%clk 0:00:33]} 1-0


[Site "https://www.chess.com"]